fUSD/lending_fUSD_20260610
["ID","MTS","AMOUNT","RATE_DAILY","PERIOD"]
[424641849,1781026249000,-10272.10520532,0.00019345,2]
[424641844,1781026249000,-187.78006524,0.00019345,2]
[424641839,1781026249000,-428.871314,0.00019178,2]
[424641858,1781026249000,-217.15233878,0.00019618,2]
[424641840,1781026249000,-3373.96218949,0.000193,2]
[424641851,1781026249000,-151.0,0.00019345,2]
[424641856,1781026249000,-500.0,0.00019548,2]
[424641903,1781026250000,-200.0,0.0002,2]
[424641918,1781026250000,-250.0,0.0002012,2]
[424641904,1781026250000,-1061.28257444,0.0002,2]
[424641901,1781026250000,-994.0,0.0002,2]
[424641930,1781026250000,-400.0,0.00020124,2]
[424641894,1781026250000,-25984.28549199,0.0002,2]
[424641931,1781026250000,-400.0,0.00020124,2]
[424641911,1781026250000,-279.0,0.0002,2]
[424641897,1781026250000,-400.0,0.0002,2]
[424641908,1781026250000,-13125.31550498,0.0002,2]
[424641916,1781026250000,-250.0,0.0002012,2]
[424641898,1781026250000,-3950.0,0.0002,2]
[424641914,1781026250000,-250.0,0.0002012,2]
[424641922,1781026250000,-164.0,0.0002012,2]
[424641936,1781026250000,-307.0068747,0.00020376,2]
[424641939,1781026250000,-154.6875,0.00020441,2]
[424641950,1781026250000,-632.26,0.00020578,2]
[424641955,1781026250000,-54498.09020433,0.000209,30]
[424641958,1781026250000,-599.60298507,0.00020988,2]
[424641935,1781026250000,-652.08853766,0.000202,2]
[424641951,1781026250000,-500.0,0.00020578,2]
[424641954,1781026250000,-4046.0,0.00020859,2]
[424641941,1781026250000,-201.93286098,0.00020441,2]
[424641960,1781026250000,-154.6875,0.00020989,2]
[424641948,1781026250000,-151.0,0.00020441,2]
[424641953,1781026250000,-652.08853766,0.000208,2]
[424641959,1781026250000,-747.80937859,0.00020988,2]
[424641956,1781026250000,-257.94169094,0.00020987,2]
[424641926,1781026250000,-400.0,0.00020124,2]
[424641946,1781026250000,-11046.30350254,0.00020441,2]
[424641913,1781026250000,-250.0,0.0002012,2]
[424641920,1781026250000,-250.0,0.0002012,2]
[424641899,1781026250000,-26840.37437958,0.0002,2]
[424641937,1781026250000,-1309.2,0.00020381,2]
[424641893,1781026250000,-2718.0,0.0002,2]
[424641891,1781026250000,-1557.47112024,0.0002,2]
[424641892,1781026250000,-179.21555397,0.0002,2]
[424641888,1781026250000,-682.0,0.0002,2]
[424641889,1781026250000,-531.0,0.0002,2]
[424641890,1781026250000,-5291.53444339,0.0002,2]
[424641895,1781026250000,-603.0,0.0002,2]
[424641905,1781026250000,-26828.28891392,0.0002,2]
[424641933,1781026250000,-183.0,0.00020124,2]
[424641921,1781026250000,-250.0,0.0002012,2]
[424641907,1781026250000,-8000.0,0.0002,2]
[424641924,1781026250000,-400.0,0.00020124,2]
[424641925,1781026250000,-400.0,0.00020124,2]
[424641906,1781026250000,-52457.76322009,0.0002,2]
[424641909,1781026250000,-152.0,0.0002,2]
[424641934,1781026250000,-2000.0,0.00020186,7]
[424641919,1781026250000,-250.0,0.0002012,2]
[424641917,1781026250000,-250.0,0.0002012,2]
[424641896,1781026250000,-3966.66481669,0.0002,2]
[424641912,1781026250000,-3032.96,0.0002,2]
[424641927,1781026250000,-400.0,0.00020124,2]
[424641928,1781026250000,-400.0,0.00020124,2]
[424641900,1781026250000,-1314.77233542,0.0002,2]
[424641929,1781026250000,-400.0,0.00020124,2]
[424641902,1781026250000,-9999.99999901,0.0002,2]
[424641915,1781026250000,-250.0,0.0002012,2]
[424641932,1781026250000,-400.0,0.00020124,2]
[424641923,1781026250000,-191.0,0.00020123,2]
[424641910,1781026250000,-5295.40938311,0.0002,2]
[424641945,1781026250000,-2405.55389863,0.00020441,2]
[424641947,1781026250000,-151.0,0.00020441,2]
[424641944,1781026250000,-242.15909246,0.00020441,2]
[424642009,1781026250000,-300.0,0.00021199,3]
[424642013,1781026250000,-1055639.5792739,0.00021199,2]
[424642008,1781026250000,-300.0,0.00021199,3]
[424641992,1781026250000,-151.0,0.00021199,2]
[424641994,1781026250000,-186.921122,0.00021199,2]
[424641993,1781026250000,-275.425078,0.00021199,2]
[424642000,1781026250000,-774.886158,0.00021199,2]
[424641990,1781026250000,-1055639.5792741,0.00021199,2]
[424642006,1781026250000,-300.0,0.00021199,3]
[424642004,1781026250000,-2416.224079,0.00021199,2]
[424642012,1781026250000,-151.0,0.00021199,2]
[424642017,1781026250000,-223.960333,0.00021199,2]
[424642010,1781026250000,-300.0,0.00021199,3]
[424641998,1781026250000,-774.886158,0.00021199,2]
[424641999,1781026250000,-774.886158,0.00021199,2]
[424641996,1781026250000,-186.921122,0.00021199,2]
[424641995,1781026250000,-186.921122,0.00021199,2]
[424642003,1781026250000,-2416.224079,0.00021199,2]
[424642001,1781026250000,-774.886158,0.00021199,2]
[424642005,1781026250000,-2416.224079,0.00021199,2]
[424641987,1781026250000,-160.0,0.00021,30]
[424642016,1781026250000,-223.960333,0.00021199,2]
[424642002,1781026250000,-2416.224079,0.00021199,2]
[424642007,1781026250000,-300.0,0.00021199,3]
[424642011,1781026250000,-151.0,0.00021199,2]
[424641988,1781026250000,-403.08914155,0.00021041,2]
[424641997,1781026250000,-186.921122,0.00021199,2]
[424641991,1781026250000,-151.0,0.00021199,2]
[424642015,1781026250000,-223.960333,0.00021199,2]
[424641989,1781026250000,-19401.7928981,0.00021199,2]
[424641983,1781026250000,-18584.10281994,0.00021,2]
[424641957,1781026250000,-151.0,0.00020988,2]
[424641981,1781026250000,-603.0,0.00021,2]
[424641977,1781026250000,-1822.0,0.00021,2]
[424641940,1781026250000,-242.15909246,0.00020441,2]
[424641949,1781026250000,-362.87495286,0.00020441,2]
[424641952,1781026250000,-652.08853766,0.000206,2]
[424642014,1781026250000,-223.960333,0.00021199,2]
[424641938,1781026250000,-652.08853766,0.000204,2]
[424641942,1781026250000,-431.83876822,0.00020441,2]
[424641943,1781026250000,-1651.81367706,0.00020441,2]
[424641965,1781026250000,-2494.55939288,0.00020989,2]
[424641964,1781026250000,-251.11897888,0.00020989,2]
[424641961,1781026250000,-251.11897888,0.00020989,2]
[424641969,1781026250000,-159.0,0.00021,2]
[424641968,1781026250000,-151.0,0.00020989,2]
[424641971,1781026250000,-1138.0,0.00021,2]
[424641963,1781026250000,-1712.93078311,0.00020989,2]
[424641966,1781026250000,-11455.01673214,0.00020989,2]
[424641962,1781026250000,-209.40437684,0.00020989,2]
[424641970,1781026250000,-384.0,0.00021,2]
[424641979,1781026250000,-531.0,0.00021,2]
[424641986,1781026250000,-215.89329178,0.00021,30]
[424641985,1781026250000,-279.0,0.00021,2]
[424641980,1781026250000,-2718.0,0.00021,2]
[424641984,1781026250000,-3419.79832629,0.00021,7]
[424641975,1781026250000,-656.0,0.00021,2]
[424641976,1781026250000,-493.0,0.00021,2]
[424641982,1781026250000,-994.0,0.00021,2]
[424641978,1781026250000,-682.0,0.00021,2]
[424641972,1781026250000,-2748.0,0.00021,2]
[424641967,1781026250000,-151.0,0.00020989,2]
[424641973,1781026250000,-978.19588565,0.00021,2]
[424641974,1781026250000,-390.411394,0.00021,2]
[424642078,1781026251000,-215.89329178,0.00022,7]
[424642063,1781026251000,-2748.0,0.00022,2]
[424642102,1781026251000,-233.5188934,0.00022633,2]
[424642083,1781026251000,-270.0455652,0.00022085,2]
[424642101,1781026251000,-280.03725111,0.00022633,2]
[424642074,1781026251000,-279.0,0.00022,2]
[424642073,1781026251000,-994.0,0.00022,2]
[424642062,1781026251000,-1138.0,0.00022,2]
[424642097,1781026251000,-226.0,0.00022575,30]
[424642054,1781026251000,-306.88,0.00021918,2]
[424642091,1781026251000,-1110.55384169,0.00022209,2]
[424642065,1781026251000,-656.0,0.00022,2]
[424642086,1781026251000,-270.0455652,0.00022085,2]
[424642060,1781026251000,-159.0,0.00022,2]
[424642084,1781026251000,-225.18697532,0.00022085,2]
[424642079,1781026251000,-160.0,0.00022,7]
[424642080,1781026251000,-1174.64,0.00022,2]
[424642093,1781026251000,-798.75,0.00022466,2]
[424642104,1781026251000,-280.03725111,0.00022633,2]
[424642103,1781026251000,-1910.18787185,0.00022633,2]
[424642076,1781026251000,-215.89329178,0.00022,10]
[424642089,1781026251000,-151.0,0.00022085,2]
[424642100,1781026251000,-154.6875,0.00022633,2]
[424642053,1781026251000,-261.737233,0.00021918,2]
[424642057,1781026251000,-500.0,0.0002198,2]
[424642069,1781026251000,-531.0,0.00022,2]
[424642068,1781026251000,-682.0,0.00022,2]
[424642075,1781026251000,-316.449424,0.00022,2]
[424642070,1781026251000,-2718.0,0.00022,2]
[424642066,1781026251000,-493.0,0.00022,2]
[424642048,1781026251000,-215.89329178,0.000216,30]
[424642032,1781026251000,-978.19588565,0.000214,2]
[424642047,1781026251000,-978.19588565,0.000216,2]
[424642096,1781026251000,-192.0,0.00022575,30]
[424642024,1781026251000,-616.582569,0.00021199,2]
[424642027,1781026251000,-274.62911,0.00021199,2]
[424642020,1781026251000,-428.871314,0.00021199,2]
[424642025,1781026251000,-151.0,0.00021199,2]
[424642022,1781026251000,-616.582569,0.00021199,2]
[424642023,1781026251000,-151.0,0.00021199,2]
[424642026,1781026251000,-616.582569,0.00021199,2]
[424642029,1781026251000,-840.46,0.00021205,2]
[424642021,1781026251000,-428.871314,0.00021199,2]
[424642018,1781026251000,-428.871314,0.00021199,2]
[424642033,1781026251000,-634.93,0.000214,2]
[424642030,1781026251000,-500.0,0.0002134,2]
[424642035,1781026251000,-154.6875,0.00021537,2]
[424642039,1781026251000,-260.4103811,0.00021537,2]
[424642036,1781026251000,-260.4103811,0.00021537,2]
[424642031,1781026251000,-500.0,0.0002134,2]
[424642038,1781026251000,-1776.30922209,0.00021537,2]
[424642028,1781026251000,-978.19588565,0.000212,2]
[424642019,1781026251000,-428.871314,0.00021199,2]
[424642043,1781026251000,-151.0,0.00021537,2]
[424642049,1781026251000,-160.0,0.000216,30]
[424642041,1781026251000,-2586.85809042,0.00021537,2]
[424642044,1781026251000,-821.40861723,0.00021551,2]
[424642051,1781026251000,-978.19588565,0.000219,2]
[424642042,1781026251000,-151.0,0.00021537,2]
[424642046,1781026251000,-241.79993927,0.00021551,2]
[424642040,1781026251000,-2279.75109458,0.00021537,2]
[424642045,1781026251000,-483.59987854,0.00021551,2]
[424642050,1781026251000,-3032.96,0.00021693,2]
[424642034,1781026251000,-2000.0,0.00021413,7]
[424642099,1781026251000,-6069.0,0.00022597,2]
[424642037,1781026251000,-217.15233878,0.00021537,2]
[424642064,1781026251000,-390.411394,0.00022,2]
[424642123,1781026251000,-682.0,0.00023,2]
[424642126,1781026251000,-603.0,0.00023,2]
[424642131,1781026251000,-500.0,0.00023,2]
[424642137,1781026251000,-500.0,0.00023,2]
[424642141,1781026251000,-500.0,0.00023,2]
[424642142,1781026251000,-500.0,0.00023,2]
[424642111,1781026251000,-316.0,0.000228,2]
[424642116,1781026251000,-1138.0,0.00023,2]
[424642127,1781026251000,-994.0,0.00023,2]
[424642150,1781026251000,-500.0,0.00023,2]
[424642145,1781026251000,-500.0,0.00023,2]
[424642128,1781026251000,-1001.51886244,0.00023,2]
[424642132,1781026251000,-516.0,0.00023,2]
[424642106,1781026251000,-151.0,0.00022633,2]
[424642110,1781026251000,-186.58419783,0.000228,2]
[424642129,1781026251000,-279.0,0.00023,2]
[424642139,1781026251000,-500.0,0.00023,2]
[424642107,1781026251000,-151.0,0.00022633,2]
[424642108,1781026251000,-500.0,0.00022639,2]
[424642114,1781026251000,-152.0,0.00022857,4]
[424642120,1781026251000,-3054.0,0.00023,2]
[424642134,1781026251000,-500.0,0.00023,2]
[424642140,1781026251000,-500.0,0.00023,2]
[424642109,1781026251000,-2000.0,0.0002264,7]
[424642135,1781026251000,-500.0,0.00023,2]
[424642147,1781026251000,-500.0,0.00023,2]
[424642148,1781026251000,-500.0,0.00023,2]
[424642146,1781026251000,-500.0,0.00023,2]
[424642149,1781026251000,-500.0,0.00023,2]
[424642098,1781026251000,-803.09496646,0.00022575,30]
[424642144,1781026251000,-500.0,0.00023,2]
[424642112,1781026251000,-888.0,0.000228,2]
[424642119,1781026251000,-656.0,0.00023,2]
[424642130,1781026251000,-215.55596215,0.00023,2]
[424642143,1781026251000,-500.0,0.00023,2]
[424642055,1781026251000,-500.0,0.00021918,30]
[424642082,1781026251000,-154.6875,0.00022085,2]
[424642087,1781026251000,-2682.57183977,0.00022085,2]
[424642088,1781026251000,-151.0,0.00022085,2]
[424642067,1781026251000,-1822.0,0.00022,2]
[424642071,1781026251000,-603.0,0.00022,2]
[424642081,1781026251000,-6075.0,0.00022001,2]
[424642092,1781026251000,-1309.2,0.00022353,2]
[424642056,1781026251000,-193.58061145,0.00021918,30]
[424642061,1781026251000,-384.0,0.00022,2]
[424642094,1781026251000,-520.15,0.00022466,2]
[424642095,1781026251000,-2900.0,0.000225,15]
[424642077,1781026251000,-160.0,0.00022,10]
[424642090,1781026251000,-152.0,0.00022203,3]
[424642072,1781026251000,-450.0,0.00022,2]
[424642085,1781026251000,-1842.0326633,0.00022085,2]
[424642125,1781026251000,-2718.0,0.00023,2]
[424642059,1781026251000,-10000.0,0.00022,10]
[424642124,1781026251000,-531.0,0.00023,2]
[424642121,1781026251000,-493.0,0.00023,2]
[424642118,1781026251000,-390.411394,0.00023,2]
[424642138,1781026251000,-500.0,0.00023,2]
[424642133,1781026251000,-500.0,0.00023,2]
[424642117,1781026251000,-2748.0,0.00023,2]
[424642136,1781026251000,-500.0,0.00023,2]
[424642122,1781026251000,-1822.0,0.00023,2]
[424642052,1781026251000,-5000.0,0.00021918,2]
[424642113,1781026251000,-309.0,0.000228,2]
[424642105,1781026251000,-2781.82699784,0.00022633,2]
[424642115,1781026251000,-384.0,0.00023,2]
[424642058,1781026251000,-10000.0,0.00022,10]
[424642199,1781026252000,-603.0,0.00024,2]
[424642185,1781026252000,-151.0,0.00023729,2]
[424642190,1781026252000,-1138.0,0.00024,2]
[424642176,1781026252000,-152.0,0.00023511,5]
[424642173,1781026252000,-3032.96,0.00023387,7]
[424642170,1781026252000,-151.0,0.00023181,2]
[424642204,1781026252000,-500.0,0.00024018,2]
[424642178,1781026252000,-621.78829552,0.00023727,2]
[424642180,1781026252000,-154.6875,0.00023729,2]
[424642188,1781026252000,-2000.0,0.00023866,7]
[424642198,1781026252000,-2718.0,0.00024,2]
[424642201,1781026252000,-500.0,0.00024,2]
[424642196,1781026252000,-682.0,0.00024,2]
[424642186,1781026252000,-151.0,0.00023729,2]
[424642193,1781026252000,-656.0,0.00024,2]
[424642205,1781026252000,-152.0,0.00024165,6]
[424642187,1781026252000,-150.0,0.0002375,2]
[424642189,1781026252000,-384.0,0.00024,2]
[424642175,1781026252000,-191.0,0.000234,7]
[424642192,1781026252000,-390.411394,0.00024,2]
[424642184,1781026252000,-2991.49051684,0.00023729,2]
[424642177,1781026252000,-151.0,0.00023727,2]
[424642164,1781026252000,-178.58424541,0.00023181,2]
[424642168,1781026252000,-2884.75459676,0.00023181,2]
[424642182,1781026252000,-2054.15682156,0.00023729,2]
[424642151,1781026252000,-500.0,0.00023,2]
[424642155,1781026252000,-150.0,0.00023179,30]
[424642154,1781026252000,-500.0,0.00023,2]
[424642153,1781026252000,-500.0,0.00023,2]
[424642152,1781026252000,-500.0,0.00023,2]
[424642167,1781026252000,-290.3986294,0.00023181,2]
[424642156,1781026252000,-232.0,0.00023179,30]
[424642165,1781026252000,-242.15909246,0.00023181,2]
[424642161,1781026252000,-250.0,0.00023179,30]
[424642166,1781026252000,-1980.8648231,0.00023181,2]
[424642159,1781026252000,-250.0,0.00023179,30]
[424642160,1781026252000,-250.0,0.00023179,30]
[424642157,1781026252000,-250.0,0.00023179,30]
[424642158,1781026252000,-250.0,0.00023179,30]
[424642162,1781026252000,-214.0,0.00023179,30]
[424642163,1781026252000,-154.6875,0.00023181,2]
[424642171,1781026252000,-500.0,0.00023319,2]
[424642174,1781026252000,-634.93,0.000234,7]
[424642169,1781026252000,-151.0,0.00023181,2]
[424642179,1781026252000,-340.68333663,0.00023727,2]
[424642172,1781026252000,-617.0,0.00023319,2]
[424642195,1781026252000,-1822.0,0.00024,2]
[424642194,1781026252000,-493.0,0.00024,2]
[424642197,1781026252000,-531.0,0.00024,2]
[424642208,1781026252000,-1864.76,0.00024174,2]
[424642215,1781026252000,-168.95797687,0.0002455,15]
[424642225,1781026252000,-388.607731,0.00024658,2]
[424642219,1781026252000,-388.607731,0.00024658,2]
[424642228,1781026252000,-388.607731,0.00024658,2]
[424642233,1781026252000,-151.0,0.00024658,2]
[424642236,1781026252000,-151.0,0.00024658,2]
[424642241,1781026252000,-151.0,0.00024658,2]
[424642243,1781026252000,-817.801717,0.00024658,2]
[424642239,1781026252000,-151.0,0.00024658,2]
[424642238,1781026252000,-151.0,0.00024658,2]
[424642232,1781026252000,-151.0,0.00024658,2]
[424642242,1781026252000,-1000.0,0.00024658,2]
[424642235,1781026252000,-151.0,0.00024658,2]
[424642240,1781026252000,-151.0,0.00024658,2]
[424642231,1781026252000,-151.0,0.00024658,2]
[424642234,1781026252000,-151.0,0.00024658,2]
[424642244,1781026252000,-817.801717,0.00024658,2]
[424642245,1781026252000,-817.801717,0.00024658,2]
[424642246,1781026252000,-817.801717,0.00024658,2]
[424642200,1781026252000,-219.31154037,0.00024,2]
[424642224,1781026252000,-388.607731,0.00024658,2]
[424642214,1781026252000,-159.0,0.00024335,2]
[424642237,1781026252000,-151.0,0.00024658,2]
[424642223,1781026252000,-388.607731,0.00024658,2]
[424642202,1781026252000,-994.0,0.00024,2]
[424642206,1781026252000,-20508.29,0.00024174,2]
[424642181,1781026252000,-251.11897888,0.00023729,2]
[424642191,1781026252000,-2748.0,0.00024,2]
[424642183,1781026252000,-301.14337869,0.00023729,2]
[424642203,1781026252000,-279.0,0.00024,2]
[424642210,1781026252000,-154.6875,0.00024277,2]
[424642217,1781026252000,-638.19,0.00024658,2]
[424642226,1781026252000,-388.607731,0.00024658,2]
[424642216,1781026252000,-306.88,0.00024658,8]
[424642212,1781026252000,-1309.2,0.00024324,2]
[424642227,1781026252000,-388.607731,0.00024658,2]
[424642229,1781026252000,-388.607731,0.00024658,2]
[424642213,1781026252000,-8092.0,0.00024335,2]
[424642218,1781026252000,-388.607731,0.00024658,2]
[424642222,1781026252000,-388.607731,0.00024658,2]
[424642211,1781026252000,-260.4103811,0.00024277,2]
[424642220,1781026252000,-388.607731,0.00024658,2]
[424642207,1781026252000,-1255.79,0.00024174,2]
[424642209,1781026252000,-200.0,0.00024206,2]
[424642221,1781026252000,-388.607731,0.00024658,2]
[424642230,1781026252000,-151.0,0.00024658,2]
[424642288,1781026253000,-170.1426362,0.00025,2]
[424642283,1781026253000,-3094.65801844,0.00025,2]
[424642282,1781026253000,-621.07969832,0.00025,2]
[424642280,1781026253000,-540.0,0.00025,2]
[424642286,1781026253000,-40707.29858851,0.00025,7]
[424642273,1781026253000,-682.35498657,0.00025,2]
[424642284,1781026253000,-1001.0,0.00025,2]
[424642290,1781026253000,-285.0,0.00025,2]
[424642287,1781026253000,-2237.57180312,0.00025,2]
[424642274,1781026253000,-1132.71453791,0.00025,2]
[424642289,1781026253000,-787528.03425971,0.00025,2]
[424642281,1781026253000,-618.0,0.00025,2]
[424642285,1781026253000,-7249.04893292,0.00025,2]
[424642298,1781026253000,-428.871314,0.00025,2]
[424642302,1781026253000,-616.582569,0.00025,2]
[424642301,1781026253000,-160.0,0.00025,7]
[424642291,1781026253000,-223.960333,0.00025,2]
[424642294,1781026253000,-223.960333,0.00025,2]
[424642293,1781026253000,-223.960333,0.00025,2]
[424642299,1781026253000,-428.871314,0.00025,2]
[424642300,1781026253000,-215.89329178,0.00025,7]
[424642296,1781026253000,-428.871314,0.00025,2]
[424642295,1781026253000,-428.871314,0.00025,2]
[424642292,1781026253000,-223.960333,0.00025,2]
[424642297,1781026253000,-285.63,0.00025,2]
[424642276,1781026253000,-210.99144652,0.00025,2]
[424642303,1781026253000,-151.0,0.00025,2]
[424642272,1781026253000,-1835.14215651,0.00025,2]
[424642250,1781026253000,-817.801717,0.00024658,2]
[424642278,1781026253000,-2733.0,0.00025,2]
[424642247,1781026253000,-817.801717,0.00024658,2]
[424642254,1781026253000,-817.801717,0.00024658,2]
[424642253,1781026253000,-817.801717,0.00024658,2]
[424642255,1781026253000,-500.0,0.00024739,2]
[424642252,1781026253000,-817.801717,0.00024658,2]
[424642248,1781026253000,-817.801717,0.00024658,2]
[424642251,1781026253000,-817.801717,0.00024658,2]
[424642305,1781026253000,-151.0,0.00025,2]
[424642249,1781026253000,-817.801717,0.00024658,2]
[424642256,1781026253000,-1274.0,0.00024769,2]
[424642258,1781026253000,-1227.0,0.00024769,2]
[424642260,1781026253000,-206.0,0.00024815,2]
[424642261,1781026253000,-152.0,0.00024818,7]
[424642259,1781026253000,-1174.64,0.00024771,7]
[424642262,1781026253000,-154.6875,0.00024825,2]
[424642265,1781026253000,-200.0,0.00024978,2]
[424642263,1781026253000,-270.0455652,0.00024825,2]
[424642257,1781026253000,-400.0,0.00024769,2]
[424642264,1781026253000,-150.0,0.00024876,22]
[424642266,1781026253000,-151.0,0.00024997,7]
[424642267,1781026253000,-400.0,0.00025,2]
[424642269,1781026253000,-2767.82810851,0.00025,2]
[424642271,1781026253000,-512.45689059,0.00025,2]
[424642268,1781026253000,-1154.0,0.00025,2]
[424642279,1781026253000,-2000.0,0.00025,2]
[424642270,1781026253000,-671.19811307,0.00025,2]
[424642275,1781026253000,-538.5011041,0.00025,2]
[424642277,1781026253000,-1815.01307875,0.00025,2]
[424642307,1781026253000,-6075.0,0.00025001,2]
[424642362,1781026253000,-1000.0,0.00026915,2]
[424642304,1781026253000,-616.582569,0.00025,2]
[424642338,1781026253000,-1530.699804,0.00026384,2]
[424642336,1781026253000,-1530.699804,0.00026384,2]
[424642345,1781026253000,-151.0,0.00026466,2]
[424642339,1781026253000,-1530.699804,0.00026384,2]
[424642341,1781026253000,-1530.699804,0.00026384,2]
[424642340,1781026253000,-1530.699804,0.00026384,2]
[424642350,1781026253000,-152.0,0.0002678,10]
[424642328,1781026253000,-282.0,0.00026027,2]
[424642342,1781026253000,-1530.699804,0.00026384,2]
[424642331,1781026253000,-238.0,0.00026073,2]
[424642333,1781026253000,-500.0,0.00026245,2]
[424642344,1781026253000,-1530.699804,0.00026384,2]
[424642355,1781026253000,-1000.0,0.00026915,2]
[424642359,1781026253000,-1000.0,0.00026915,2]
[424642358,1781026253000,-1000.0,0.00026915,2]
[424642361,1781026253000,-1000.0,0.00026915,2]
[424642357,1781026253000,-1000.0,0.00026915,2]
[424642356,1781026253000,-1000.0,0.00026915,2]
[424642353,1781026253000,-1000.0,0.00026915,2]
[424642354,1781026253000,-1000.0,0.00026915,2]
[424642363,1781026253000,-2000.0,0.00026915,2]
[424642360,1781026253000,-1000.0,0.00026915,2]
[424642352,1781026253000,-1000.0,0.00026915,2]
[424642365,1781026253000,-2000.0,0.00026915,2]
[424642364,1781026253000,-1000.0,0.00026915,2]
[424642366,1781026253000,-1000.0,0.00026915,2]
[424642306,1781026253000,-616.582569,0.00025,2]
[424642330,1781026253000,-10116.0,0.00026073,2]
[424642337,1781026253000,-1530.699804,0.00026384,2]
[424642347,1781026253000,-301.14337869,0.00026469,2]
[424642343,1781026253000,-1530.699804,0.00026384,2]
[424642315,1781026253000,-840.46,0.00025644,2]
[424642346,1781026253000,-644.79446245,0.00026466,2]
[424642310,1781026253000,-5530.0,0.000252,3]
[424642308,1781026253000,-3032.96,0.0002508,7]
[424642314,1781026253000,-634.93,0.000256,7]
[424642309,1781026253000,-2000.0,0.00025093,7]
[424642313,1781026253000,-500.0,0.00025481,2]
[424642311,1781026253000,-280.03725111,0.00025373,2]
[424642317,1781026253000,-20508.29,0.00025786,2]
[424642316,1781026253000,-200.0,0.00025751,2]
[424642320,1781026253000,-500.0,0.00025835,14]
[424642319,1781026253000,-1864.76,0.00025786,2]
[424642323,1781026253000,-285.0,0.00025928,2]
[424642322,1781026253000,-290.3986294,0.00025921,2]
[424642312,1781026253000,-152.0,0.00025472,8]
[424642329,1781026253000,-179.0,0.00026027,2]
[424642335,1781026253000,-2000.0,0.0002632,7]
[424642326,1781026253000,-215.89329178,0.00026,3]
[424642351,1781026253000,-1000.0,0.00026915,2]
[424642334,1781026253000,-1309.2,0.00026296,2]
[424642332,1781026253000,-152.0,0.00026126,9]
[424642349,1781026253000,-3032.96,0.00026774,7]
[424642348,1781026253000,-200.0,0.00026523,2]
[424642325,1781026253000,-550.0,0.00026,2]
[424642324,1781026253000,-7732.11304072,0.00026,10]
[424642318,1781026253000,-1255.79,0.00025786,2]
[424642321,1781026253000,-5530.0,0.000259,5]
[424642327,1781026253000,-160.0,0.00026,3]
[424642419,1781026254000,-1000.0,0.00026942,2]
[424642415,1781026254000,-1000.0,0.00026942,2]
[424642423,1781026254000,-1000.0,0.00026942,2]
[424642422,1781026254000,-1000.0,0.00026942,2]
[424642416,1781026254000,-1000.0,0.00026942,2]
[424642410,1781026254000,-2000.0,0.00026917,2]
[424642397,1781026254000,-1114.99,0.00026915,2]
[424642404,1781026254000,-2000.0,0.00026917,2]
[424642424,1781026254000,-1000.0,0.00026942,2]
[424642403,1781026254000,-2000.0,0.00026917,2]
[424642398,1781026254000,-2000.0,0.00026917,2]
[424642427,1781026254000,-1000.0,0.00026942,2]
[424642428,1781026254000,-1000.0,0.00026942,2]
[424642411,1781026254000,-2000.0,0.00026917,2]